Workbook

Sheet Start
B1: ABOUT THIS TEMPLATE
B2: Use this template to create a channel marketing budget.
B3: Enter anticipated sales for each month and other details in tables.
B4: Totals are auto-calculated and sparklines are updated.
B5: Note:
B6: Additional instructions have been provided in column A in CHANNEL MARKETING BUDGET worksheet. This text has been intentionally hidden. To remove text, select column A, then select DELETE. To unhide text, select column A, then change font color.
B7: To learn more about tables, press SHIFT and then F10 within a table, select the TABLE option, and then select ALTERNATIVE TEXT.

Sheet Channel marketing budget
C1: CHANNEL MARKETING BUDGET
C3: Rate | D3: Jan | E3: Feb | F3: Mar | G3: Apr | H3: May | I3: Jun | J3: Jul | K3: Aug | L3: Sep | M3: Oct | N3: Nov | O3: Dec | Q3: Total
B4: ANTICIPATED SALES TOTAL $(000) | D4: 750 | E4: 200 | F4: 500 | G4: 1,500 | H4: 1,200 | I4: 1,500 | J4: 1,500 | K4: 1,800 | L4: 2,000 | M4: 2,000 | N4: 2,000 | O4: 2,000 | Q4: =SUM(D4:O4) -> 9,000
A5: Enter details in Personnel table starting in cell at right. Personnel Total for each month is auto calculated at the table-end and annual Total in cell Q9. Sparkline is updated in cell S9. Next instruction is in cell A10.
B6: PERSONNEL (% OF TOTAL SALES) | D6: =D12+D37+D45+D52 -> 110% | E6: 110% | F6: 110% | G6: 110% | H6: 110% | I6: 110% | J6: 110% | K6: 110% | L6: 85% | M6: 85% | N6: 85% | O6: 85%
B7: Human resources - headcount | C7: 5 | D7: =+$C$7 -> 5 | E7: 5 | F7: 5 | G7: 5 | H7: 5 | I7: 5 | J7: 5 | K7: 5 | L7: 5 | M7: 5 | N7: 5 | O7: 5
B8: Human resources - cost | D8: =$C$7*D7 -> 25.00 | E8: 25.00 | F8: 25.00 | G8: 25.00 | H8: 25.00 | I8: 25.00 | J8: 25.00 | K8: 25.00 | L8: 25.00 | M8: 25.00 | N8: 25.00 | O8: 25.00 | Q8: =SUM('Channel marketing budget'!$D8:$O8) -> 300.00
B9: Commission | C9: 0.10% | D9: =D4*$C$9 -> 0.75 | E9: 0.20 | F9: 0.50 | G9: 1.50 | H9: 1.20 | I9: 1.50 | J9: 1.50 | K9: 1.80 | L9: 2.00 | M9: 2.00 | N9: 2.00 | O9: 2.00 | Q9: =SUM('Channel marketing budget'!$D9:$O9) -> 16.95
B10: Personnel total $(000) | D10: =SUM(D8:D9) -> 25.75 | E10: =SUM(E8:E9) -> 25.20 | F10: 25.50 | G10: 26.50 | H10: 26.20 | I10: 26.50 | J10: 26.50 | K10: 26.80 | L10: 27.00 | M10: 27.00 | N10: 27.00 | O10: 27.00 | Q10: =SUM(Q8:Q9) -> 316.95
B11: DIRECT MARKETING ITEMS | C11: Rate | D11: Jan | E11: Feb | F11: Mar | G11: Apr | H11: May | I11: Jun | J11: Jul | K11: Aug | L11: Sep | M11: Oct | N11: Nov | O11: Dec
B12: DIRECT MARKETING (% OF TOTAL SALES) | D12: 100% | E12: 100% | F12: 75% | G12: 40% | H12: 33% | I12: 25% | J12: 20% | K12: 10% | L12: 5% | M12: 5% | N12: 5% | O12: 5%
B13: Telemarketing (% of direct sales) | D13: 100% | E13: 50% | F13: 50% | G13: 50% | H13: 50% | I13: 50% | J13: 50% | K13: 50% | L13: 50% | M13: 50% | N13: 50% | O13: 50%
B14: Human resources - headcount | C14: 3 | D14: =$C$14*D13 -> 3 | E14: 1.5 | F14: 1.5 | G14: 1.5 | H14: 1.5 | I14: 1.5 | J14: 1.5 | K14: 1.5 | L14: 1.5 | M14: 1.5 | N14: 1.5 | O14: 1.5 | Q14: =SUM('Channel marketing budget'!$D14:$O14) -> 19.50
B15: Infrastructure support | D15: 25 | E15: 10 | F15: 25 | G15: 10 | H15: 25 | I15: 10 | J15: 25 | K15: 10 | L15: 25 | M15: 10 | N15: 25 | O15: 10 | Q15: =SUM('Channel marketing budget'!$D15:$O15) -> 210.00
B16: Commission | C16: 0.10% | D16: =$C$16*D4*D12*D13 -> 0.75 | E16: 0.10 | F16: 0.19 | G16: 0.30 | H16: 0.20 | I16: 0.19 | J16: 0.15 | K16: 0.09 | L16: 0.05 | M16: 0.05 | N16: 0.05 | O16: 0.05 | Q16: =SUM('Channel marketing budget'!$D16:$O16) -> 2.16
B17: Training | D17: 25 | E17: 10 | F17: 25 | G17: 10 | H17: 25 | I17: 10 | J17: 25 | K17: 10 | L17: 25 | M17: 10 | N17: 25 | O17: 10 | Q17: =SUM('Channel marketing budget'!$D17:$O17) -> 210.00
B18: Telemarketing total $(000) | D18: =SUM(D14:D17) -> 53.75 | E18: =SUM(E14:E17) -> 21.60 | F18: =SUM(F14:F17) -> 51.69 | G18: 21.80 | H18: 51.70 | I18: 21.69 | J18: 51.65 | K18: 21.59 | L18: 51.55 | M18: 21.55 | N18: 51.55 | O18: 21.55 | Q18: =SUM(Q14:Q17) -> 441.66
B19: INTERNET MARKETING ITEMS | C19: Rate | D19: Jan | E19: Feb | F19: Mar | G19: Apr | H19: May | I19: Jun | J19: Jul | K19: Aug | L19: Sep | M19: Oct | N19: Nov | O19: Dec
B20: INTERNET MARKETING (% OF DIRECT SALES) | D20: 25% | E20: 25% | F20: 25% | G20: 25% | H20: 25% | I20: 25% | J20: 25% | K20: 25% | L20: 25% | M20: 25% | N20: 25% | O20: 25%
B21: Human resources - headcount | C21: 1 | D21: =$C$21*D20 -> 0.25 | E21: 0.25 | F21: 0.25 | G21: 0.25 | H21: 0.25 | I21: 0.25 | J21: 0.25 | K21: 0.25 | L21: 0.25 | M21: 0.25 | N21: 0.25 | O21: 0.25 | Q21: =SUM('Channel marketing budget'!$D21:$O21) -> 3.00
B22: Website development (one-time cost) | D22: 500 | Q22: =SUM('Channel marketing budget'!$D22:$O22) -> 500.00
B23: Hosting | D23: 10 | E23: 10 | F23: 10 | G23: 10 | H23: 10 | I23: 10 | J23: 10 | K23: 10 | L23: 10 | M23: 10 | N23: 10 | O23: 10 | Q23: =SUM('Channel marketing budget'!$D23:$O23) -> 120.00
B24: Support & maintenance | D24: 25 | N24: 25 | Q24: =SUM('Channel marketing budget'!$D24:$O24) -> 50.00
B25: Social platform 1 | E25: 100 | G25: 100 | I25: 100 | K25: 100 | M25: 100 | O25: 100 | Q25: =SUM('Channel marketing budget'!$D25:$O25) -> 600.00
B26: Social platform 2 | D26: 100 | F26: 100 | H26: 100 | J26: 100 | L26: 100 | N26: 100 | Q26: =SUM('Channel marketing budget'!$D26:$O26) -> 600.00
B27: Social platform 3 | E27: 100 | G27: 100 | H27: 100 | L27: 100 | M27: 100 | O27: 100 | Q27: =SUM('Channel marketing budget'!$D27:$O27) -> 600.00
B28: Internet marketing total $(000) | D28: =SUM(D21:D24) -> 535.25 | E28: 10.25 | F28: 10.25 | G28: 10.25 | H28: 10.25 | I28: 10.25 | J28: 10.25 | K28: 10.25 | L28: 10.25 | M28: 10.25 | N28: 35.25 | O28: 10.25 | Q28: =SUM(Q21:Q24) -> 673.00
B29: DIRECT MAIL ITEMS | C29: Rate | D29: Jan | E29: Feb | F29: Mar | G29: Apr | H29: May | I29: Jun | J29: Jul | K29: Aug | L29: Sep | M29: Oct | N29: Nov | O29: Dec
B30: DIRECT MAIL (% OF DIRECT SALES)
B31: Human resources - cost | Q31: =SUM('Channel marketing budget'!$D31:$O31) -> 0.00
B32: Material | D32: 1000 | E32: 1000 | F32: 1000 | G32: 1000 | H32: 1000 | I32: 1000 | J32: 1000 | K32: 1000 | L32: 1000 | M32: 1000 | N32: 1000 | O32: 1000 | Q32: =SUM('Channel marketing budget'!$D32:$O32) -> 12,000.00
B33: Postage | D33: 250 | E33: 250 | F33: 250 | G33: 250 | H33: 250 | I33: 250 | J33: 250 | K33: 250 | L33: 250 | M33: 250 | N33: 250 | O33: 250 | Q33: =SUM('Channel marketing budget'!$D33:$O33) -> 3,000.00
B34: Direct mail total $(000) | D34: =SUM(D31:D33) -> 1,250.00 | E34: =SUM(E31:E33) -> 1,250.00 | F34: 1,250.00 | G34: 1,250.00 | H34: 1,250.00 | I34: 1,250.00 | J34: 1,250.00 | K34: 1,250.00 | L34: 1,250.00 | M34: 1,250.00 | N34: 1,250.00 | O34: 1,250.00 | Q34: =SUM(Q31:Q33) -> 15,000.00
B35: Direct marketing total $(000) | D35: =SUM('Channel marketing budget'!$D$34,'Channel marketing budget'!$D$28,'Channel marketing budget'!$D$18) -> 1,839.00 | E35: =SUM('Channel marketing budget'!$E$34,'Channel marketing budget'!$E$28,'Channel marketing budget'!$E$18) -> 1,281.85 | F35: =SUM('Channel marketing budget'!$F$34,'Channel marketing budget'!$F$28,'Channel marketing budget'!$F$18) -> 1,311.94 | G35: =SUM('Channel marketing budget'!$G$34,'Channel marketing budget'!$G$28,'Channel marketing budget'!$G$18) -> 1,282.05 | H35: =SUM('Channel marketing budget'!$H$34,'Channel marketing budget'!$H$28,'Channel marketing budget'!$H$18) -> 1,311.95 | I35: =SUM('Channel marketing budget'!$I$34,'Channel marketing budget'!$I$28,'Channel marketing budget'!$I$18) -> 1,281.94 | J35: =SUM('Channel marketing budget'!$J$34,'Channel marketing budget'!$J$28,'Channel marketing budget'!$J$18) -> 1,311.90 | K35: =SUM('Channel marketing budget'!$K$34,'Channel marketing budget'!$K$28,'Channel marketing budget'!$K$18) -> 1,281.84 | L35: =SUM('Channel marketing budget'!$L$34,'Channel marketing budget'!$L$28,'Channel marketing budget'!$L$18) -> 1,311.80 | M35: =SUM('Channel marketing budget'!$M$34,'Channel marketing budget'!$M$28,'Channel marketing budget'!$M$18) -> 1,281.80 | N35: =SUM('Channel marketing budget'!$N$34,'Channel marketing budget'!$N$28,'Channel marketing budget'!$N$18) -> 1,336.80 | O35: =SUM('Channel marketing budget'!$O$34,'Channel marketing budget'!$O$28,'Channel marketing budget'!$O$18) -> 1,281.80 | Q35: =SUM(Q34,Q28,Q18,Q10) -> 16,431.61
B36: AGENT/BROKER ITEMS | C36: Rate | D36: Jan | E36: Feb | F36: Mar | G36: Apr | H36: May | I36: Jun | J36: Jul | K36: Aug | L36: Sep | M36: Oct | N36: Nov | O36: Dec
B37: AGENT/BROKER (% OF TOTAL SALES) | D37: 10% | E37: 10% | F37: 10% | G37: 10% | H37: 10% | I37: 10% | J37: 10% | K37: 10% | L37: 10% | M37: 10% | N37: 10% | O37: 10%
B38: Communication | D38: 50 | E38: 50 | F38: 50 | G38: 50 | H38: 50 | I38: 50 | J38: 50 | K38: 50 | L38: 50 | M38: 50 | N38: 50 | O38: 50 | Q38: =SUM('Channel marketing budget'!$D38:$O38) -> 600.00
B39: Training | D39: 250.00 | E39: 250.00 | F39: 250.00 | G39: 250.00 | H39: 250.00 | I39: 250.00 | J39: 250.00 | K39: 250.00 | L39: 250.00 | M39: 250.00 | N39: 250.00 | O39: 250.00 | Q39: =SUM('Channel marketing budget'!$D39:$O39) -> 3,000.00
B40: Promotions | D40: 600.00 | E40: 600.00 | F40: 600.00 | G40: 600.00 | H40: 600.00 | I40: 600.00 | J40: 600.00 | K40: 600.00 | L40: 600.00 | M40: 600.00 | N40: 600.00 | O40: 600.00 | Q40: =SUM('Channel marketing budget'!$D40:$O40) -> 7,200.00
B41: Discounts | C41: 10.00% | D41: =D4*D37*$C$41 -> 7.50 | E41: 2.00 | F41: 5.00 | G41: 15.00 | H41: 12.00 | I41: 15.00 | J41: 15.00 | K41: 18.00 | L41: 20.00 | M41: 20.00 | N41: 20.00 | O41: 20.00 | Q41: =SUM('Channel marketing budget'!$D41:$O41) -> 169.50
B42: Commission (% of agent's sales) | C42: 10.00% | D42: =D4*D37*$C$42 -> 7.50 | E42: 2.00 | F42: 5.00 | G42: 15.00 | H42: 12.00 | I42: 15.00 | J42: 15.00 | K42: 18.00 | L42: 20.00 | M42: 20.00 | N42: 20.00 | O42: 20.00 | Q42: =SUM('Channel marketing budget'!$D42:$O42) -> 169.50
B43: Agent/broker total $(000) | D43: =SUM(D38:D42) -> 915.00 | E43: =SUM(E38:E42) -> 904.00 | F43: 910.00 | G43: 930.00 | H43: 924.00 | I43: 930.00 | J43: 930.00 | K43: 936.00 | L43: 940.00 | M43: 940.00 | N43: 940.00 | O43: 940.00 | Q43: =SUM(Q38:Q42) -> 11,139.00
B44: DISTRIBUTORS ITEMS | C44: Rate | D44: Jan | E44: Feb | F44: Mar | G44: Apr | H44: May | I44: Jun | J44: Jul | K44: Aug | L44: Sep | M44: Oct | N44: Nov | O44: Dec
B45: DISTRIBUTORS (% OF TOTAL SALES) | D45: 0% | E45: 0% | F45: 0% | G45: 0% | H45: 0% | I45: 15% | J45: 20% | K45: 40% | L45: 40% | M45: 40% | N45: 40% | O45: 40%
B46: Communication | D46: 50 | E46: 50 | F46: 50 | G46: 50 | H46: 50 | I46: 50 | J46: 50 | K46: 50 | L46: 50 | M46: 50 | N46: 50 | O46: 50 | Q46: =SUM('Channel marketing budget'!$D46:$O46) -> 600.00
B47: Training | D47: 250.00 | E47: 250.00 | F47: 250.00 | G47: 250.00 | H47: 250.00 | I47: 250.00 | J47: 250.00 | K47: 250.00 | L47: 250.00 | M47: 250.00 | N47: 250.00 | O47: 250.00 | Q47: =SUM('Channel marketing budget'!$D47:$O47) -> 3,000.00
B48: Promotions | D48: 600.00 | E48: 600.00 | F48: 600.00 | G48: 600.00 | H48: 600.00 | I48: 600.00 | J48: 600.00 | K48: 600.00 | L48: 600.00 | M48: 600.00 | N48: 600.00 | O48: 600.00 | Q48: =SUM('Channel marketing budget'!$D48:$O48) -> 7,200.00
B49: Commission/discounts (% of distributors' sales) | C49: 15.00% | D49: =D4*D45*$C$49 -> 0 | E49: 0 | F49: 0 | G49: 0 | H49: 0 | I49: 33.75 | J49: 45 | K49: 108 | L49: 120 | M49: 120 | N49: 120 | O49: 120 | Q49: =SUM('Channel marketing budget'!$D49:$O49) -> 666.75
B50: Distributor total $(000) | D50: =SUM(D46:D49) -> 900.00 | E50: =SUM(E46:E49) -> 900.00 | F50: 900.00 | G50: 900.00 | H50: 900.00 | I50: 933.75 | J50: 945.00 | K50: 1,008.00 | L50: 1,020.00 | M50: 1,020.00 | N50: 1,020.00 | O50: 1,020.00 | Q50: =SUM(Q46:Q49) -> 11,466.75
B51: RETAIL ITEMS | C51: Rate | D51: Jan | E51: Feb | F51: Mar | G51: Apr | H51: May | I51: Jun | J51: Jul | K51: Aug | L51: Sep | M51: Oct | N51: Nov | O51: Dec
B52: RETAILER (% OF TOTAL SALES) | D52: 0% | E52: 0% | F52: 25% | G52: 60% | H52: 67% | I52: 60% | J52: 60% | K52: 50% | L52: 30% | M52: 30% | N52: 30% | O52: 30%
B53: Communication | D53: 50 | E53: 50 | F53: 50 | G53: 50 | H53: 50 | I53: 50 | J53: 50 | K53: 50 | L53: 50 | M53: 50 | N53: 50 | O53: 50
B54: Training | D54: 250.00 | E54: 250.00 | F54: 250.00 | G54: 250.00 | H54: 250.00 | I54: 250.00 | J54: 250.00 | K54: 250.00 | L54: 250.00 | M54: 250.00 | N54: 250.00 | O54: 250.00 | Q54: =SUM('Channel marketing budget'!$D53:$O53) -> 600.00
B55: Promotions | D55: 600.00 | E55: 600.00 | F55: 600.00 | G55: 600.00 | H55: 600.00 | I55: 600.00 | J55: 600.00 | K55: 600.00 | L55: 600.00 | M55: 600.00 | N55: 600.00 | O55: 600.00 | Q55: =SUM('Channel marketing budget'!$D54:$O54) -> 3,000.00
B56: Commission/discounts (% of retail sales) | C56: 10.00% | D56: =D4*D52*$C$56 -> 0 | E56: 0 | F56: 12.5 | G56: 90 | H56: 80.4 | I56: 90 | J56: 90 | K56: 90 | L56: 60 | M56: 60 | N56: 60 | O56: 60 | Q56: =SUM('Channel marketing budget'!$D56:$O56) -> 692.90
B57: Retailer total $(000) | D57: =SUM(D53:D56) -> 900.00 | E57: =SUM(E53:E56) -> 900.00 | F57: 912.50 | G57: 990.00 | H57: 980.40 | I57: 990.00 | J57: 990.00 | K57: 990.00 | L57: 960.00 | M57: 960.00 | N57: 960.00 | O57: 960.00 | Q57: =SUM(Q54:Q56) -> 4,292.90
B58: CUSTOMER ACQUISTION & RETENTION (CAR) ITEMS | C58: Rate | D58: Jan | E58: Feb | F58: Mar | G58: Apr | H58: May | I58: Jun | J58: Jul | K58: Aug | L58: Sep | M58: Oct | N58: Nov | O58: Dec
B59: CUSTOMER ACQUISITION & RETENTION (CAR)
B60: Human resources | D60: 50 | E60: 50 | F60: 50 | G60: 50 | H60: 50 | I60: 50 | J60: 50 | K60: 50 | L60: 50 | M60: 50 | N60: 50 | O60: 50 | Q60: =SUM('Channel marketing budget'!$D60:$O60) -> 600.00
B61: Communications | D61: 250.00 | E61: 250.00 | F61: 250.00 | G61: 250.00 | H61: 250.00 | I61: 250.00 | J61: 250.00 | K61: 250.00 | L61: 250.00 | M61: 250.00 | N61: 250.00 | O61: 250.00 | Q61: =SUM('Channel marketing budget'!$D61:$O61) -> 3,000.00
B62: Promotions/coupons | D62: 600 | E62: 600 | F62: 600 | G62: 600 | H62: 600 | I62: 600 | J62: 600 | K62: 600 | L62: 600 | M62: 600 | N62: 600 | O62: 600 | Q62: =SUM('Channel marketing budget'!$D62:$O62) -> 7,200.00
B63: CAR total $(000) | D63: =SUM(D60:D62) -> 900.00 | E63: =SUM(E60:E62) -> 900.00 | F63: 900.00 | G63: 900.00 | H63: 900.00 | I63: 900.00 | J63: 900.00 | K63: 900.00 | L63: 900.00 | M63: 900.00 | N63: 900.00 | O63: 900.00 | Q63: =SUM(Q60:Q62) -> 10,800.00
B64: OTHER EXPENSE ITEMS | C64: Rate | D64: Jan | E64: Feb | F64: Mar | G64: Apr | H64: May | I64: Jun | J64: Jul | K64: Aug | L64: Sep | M64: Oct | N64: Nov | O64: Dec
B65: OTHER EXPENSES
B66: Travel | D66: 50 | E66: 50 | F66: 50 | G66: 50 | H66: 50 | I66: 50 | J66: 50 | K66: 50 | L66: 50 | M66: 50 | N66: 50 | O66: 50 | Q66: =SUM('Channel marketing budget'!$D66:$O66) -> 600.00
B67: Infrastructure (computer, telephone, etc.) | D67: 250.00 | E67: 250.00 | F67: 250.00 | G67: 250.00 | H67: 250.00 | I67: 250.00 | J67: 250.00 | K67: 250.00 | L67: 250.00 | M67: 250.00 | N67: 250.00 | O67: 250.00 | Q67: =SUM('Channel marketing budget'!$D67:$O67) -> 3,000.00
B68: Channel support | D68: 600 | E68: 600 | F68: 600 | G68: 600 | H68: 600 | I68: 600 | J68: 600 | K68: 600 | L68: 600 | M68: 600 | N68: 600 | O68: 600 | Q68: =SUM('Channel marketing budget'!$D68:$O68) -> 7,200.00
B69: Other expenses total $(000) | D69: =SUM(D66:D68) -> 900.00 | E69: =SUM(E66:E68) -> 900.00 | F69: 900.00 | G69: 900.00 | H69: 900.00 | I69: 900.00 | J69: 900.00 | K69: 900.00 | L69: 900.00 | M69: 900.00 | N69: 900.00 | O69: 900.00 | Q69: =SUM(Q66:Q68) -> 10,800.00
B71: TOTAL MARKETING BUDGET: | D71: =SUM(D35,'Channel marketing budget'!$D$43,'Channel marketing budget'!$D$50,'Channel marketing budget'!$D$57,'Channel marketing budget'!$D$63,'Channel marketing budget'!$D$69) -> 6,354.00 | E71: =SUM('Channel marketing budget'!$E$69,'Channel marketing budget'!$E$63,'Channel marketing budget'!$E$57,'Channel marketing budget'!$E$50,'Channel marketing budget'!$E$43,E35) -> 5,785.85 | F71: =SUM('Channel marketing budget'!$F$69,'Channel marketing budget'!$F$63,'Channel marketing budget'!$F$57,'Channel marketing budget'!$F$50,'Channel marketing budget'!$F$43,F35) -> 5,834.44 | G71: =SUM('Channel marketing budget'!$G$69,'Channel marketing budget'!$G$63,'Channel marketing budget'!$G$57,'Channel marketing budget'!$G$50,'Channel marketing budget'!$G$43,G35) -> 5,902.05 | H71: =SUM('Channel marketing budget'!$H$69,'Channel marketing budget'!$H$63,'Channel marketing budget'!$H$57,'Channel marketing budget'!$H$50,'Channel marketing budget'!$H$43,H35) -> 5,916.35 | I71: =SUM('Channel marketing budget'!$I$69,'Channel marketing budget'!$I$63,'Channel marketing budget'!$I$57,'Channel marketing budget'!$I$50,'Channel marketing budget'!$I$43,I35) -> 5,935.69 | J71: =SUM('Channel marketing budget'!$J$69,'Channel marketing budget'!$J$63,'Channel marketing budget'!$J$57,'Channel marketing budget'!$J$50,'Channel marketing budget'!$J$43,J35) -> 5,976.90 | K71: =SUM('Channel marketing budget'!$K$69,'Channel marketing budget'!$K$63,'Channel marketing budget'!$K$57,'Channel marketing budget'!$K$50,'Channel marketing budget'!$K$43,K35) -> 6,015.84 | L71: =SUM('Channel marketing budget'!$L$69,'Channel marketing budget'!$L$63,'Channel marketing budget'!$L$57,'Channel marketing budget'!$L$50,'Channel marketing budget'!$L$43,L35) -> 6,031.80 | M71: =SUM('Channel marketing budget'!$M$69,'Channel marketing budget'!$M$63,'Channel marketing budget'!$M$57,'Channel marketing budget'!$M$50,'Channel marketing budget'!$M$43,M35) -> 6,001.80 | N71: =SUM('Channel marketing budget'!$N$69,'Channel marketing budget'!$N$63,'Channel marketing budget'!$N$57,'Channel marketing budget'!$N$50,'Channel marketing budget'!$N$43,N35) -> 6,056.80 | O71: =SUM('Channel marketing budget'!$O$69,'Channel marketing budget'!$O$63,'Channel marketing budget'!$O$57,'Channel marketing budget'!$O$50,'Channel marketing budget'!$O$43,O35) -> 6,001.80 | Q71: =Q73 -> 0.00
